bitfinex/quotes_BTCUSD_20240820
["timestamp","ask_amount","ask_price","bid_price","bid_amount"]
[1724188228637,2.16264058,59227.0,59226.0,0.000902]
[1724188228849,2.16263913,59227.0,59226.0,0.000902]
[1724188229059,2.17163913,59227.0,59226.0,0.001902]
[1724188229273,0.03,59210.0,59208.0,0.009009]
[1724188229443,1.68912013,59209.0,59208.0,0.009009]
[1724188229606,1.78912013,59209.0,59208.0,0.009009]
[1724188231439,2.08502013,59209.0,59208.0,0.009009]
[1724188231878,2.09371406,59209.0,59208.0,0.009009]
[1724188232053,2.09871406,59209.0,59208.0,0.009009]
[1724188232288,2.43650006,59209.0,59208.0,0.009009]
[1724188232499,2.43250006,59209.0,59208.0,0.009009]
[1724188232698,2.54680898,59209.0,59208.0,0.009009]
[1724188232830,2.48861978,59209.0,59208.0,0.009009]
[1724188233031,2.48861561,59209.0,59208.0,0.009009]
[1724188233264,1.212611,59191.0,59190.0,0.0009031]
[1724188233665,1.22184211,59191.0,59190.0,0.0009031]
[1724188235214,1.22284211,59191.0,59190.0,0.0009031]
[1724188237204,0.88495311,59191.0,59190.0,0.0009031]
[1724188237424,0.88395311,59191.0,59190.0,0.0009031]
[1724188238027,0.54606411,59191.0,59190.0,0.0009031]
[1724188238228,0.88395311,59191.0,59190.0,0.0009031]
[1724188239268,1.22725494,59191.0,59190.0,0.0009031]
[1724188239512,2.35753294,59191.0,59190.0,0.0009031]
[1724188239719,2.717304,59191.0,59190.0,1e-07]
[1724188239934,2.717304,59191.0,59186.0,0.0009031]
[1724188239935,0.001,59190.0,59186.0,0.0009031]
[1724188240139,1.520604,59187.0,59186.0,0.0009031]
[1724188240343,3.10471161,59187.0,59186.0,1e-07]
[1724188240547,3.33297252,59187.0,59186.0,1e-07]
[1724188240784,3.2832175,59187.0,59186.0,1e-07]
[1724188241204,3.26783389,59187.0,59186.0,1e-07]
[1724188241407,2.088609,59184.0,59183.0,0.00778616]
[1724188241611,2.63279487,59184.0,59183.0,0.00778616]
[1724188242055,2.64370076,59184.0,59183.0,0.00778616]
[1724188243306,2.64370076,59184.0,59183.0,0.00520575]
[1724188243307,2.64570076,59184.0,59183.0,0.00520575]
[1724188243511,2.70289759,59184.0,59183.0,0.00520575]
[1724188243731,2.64922445,59184.0,59183.0,0.00520575]
[1724188243957,2.70742128,59184.0,59183.0,0.00520575]
[1724188244156,2.70642128,59184.0,59183.0,0.00520575]
[1724188244286,2.70642128,59184.0,59181.0,7.5e-07]
[1724188244287,1.52273,59182.0,59181.0,7.5e-07]
[1724188244517,2.02763354,59182.0,59181.0,7.5e-07]
[1724188244716,2.36557354,59182.0,59181.0,7.5e-07]
[1724188244966,2.36557354,59182.0,59178.0,7.5e-07]
[1724188244967,1.608306,59179.0,59178.0,7.5e-07]
[1724188245116,2.30060587,59179.0,59178.0,7.5e-07]
[1724188245301,2.47682354,59179.0,59178.0,7.5e-07]
[1724188245954,1.750959,59173.0,59166.0,0.00902]
[1724188246154,1.86634178,59173.0,59166.0,0.00902]
[1724188246356,2.21849198,59173.0,59166.0,0.00902]
[1724188246557,2.29959198,59173.0,59166.0,0.00902]
[1724188247910,2.29959263,59173.0,59166.0,0.00902]
[1724188248130,1.96160163,59173.0,59166.0,0.00902]
[1724188248289,1.44251063,59173.0,59166.0,0.00902]
[1724188248731,1.78050163,59173.0,59166.0,0.00902]
[1724188249693,0.845992,59172.0,59166.0,0.00902]
[1724188249804,1.64637243,59172.0,59171.0,1e-06]
[1724188250007,1.833217,59167.0,59151.0,0.49339574]
[1724188250203,0.875277,59152.0,59151.0,0.49339574]
[1724188250462,0.875277,59152.0,59151.0,0.0011042]
[1724188250463,0.99066043,59152.0,59151.0,0.0011042]
[1724188250662,1.68101919,59152.0,59151.0,0.0011042]
[1724188253226,1.66563576,59152.0,59151.0,0.0011042]
[1724188253431,0.90479431,59152.0,59151.0,0.0011042]
[1724188253642,1.22752476,59152.0,59151.0,0.0011042]
[1724188253849,1.24290635,59152.0,59151.0,0.0011042]
[1724188254051,1.22752476,59152.0,59151.0,0.0011042]
[1724188254487,1.24290615,59152.0,59151.0,0.0011042]
[1724188255379,0.90479515,59152.0,59151.0,0.0011042]
[1724188255802,1.24290615,59152.0,59151.0,0.0011042]
[1724188256527,0.90479515,59152.0,59151.0,0.0011042]
[1724188256734,0.88941376,59152.0,59151.0,0.0766042]
[1724188257370,0.90479854,59152.0,59151.0,0.0766042]
[1724188257813,1.24290954,59152.0,59151.0,0.0011042]
[1724188258668,1.22752476,59152.0,59151.0,0.0011042]
[1724188258873,1.24290709,59152.0,59151.0,0.0011042]
[1724188259700,0.90479609,59152.0,59151.0,0.0011042]
[1724188260106,1.24290709,59152.0,59151.0,0.0011042]
[1724188260987,1.24289916,59152.0,59151.0,0.0011042]
[1724188261212,0.56667716,59152.0,59151.0,0.0011042]
[1724188261421,0.90478816,59152.0,59151.0,0.0011042]
[1724188261873,0.19856616,59152.0,59151.0,0.0011042]
[1724188262045,0.01413676,59152.0,59151.0,0.5894792]
[1724188262403,0.338065,59161.0,59153.0,0.169052]
[1724188262404,0.169039,59158.0,59153.0,0.169052]
[1724188262627,0.33804,59165.0,59157.0,0.338081]
[1724188262835,0.01399312,59157.0,59155.0,0.250246]
[1724188263024,0.33806,59162.0,59156.0,0.169044]
[1724188263256,0.169028,59162.0,59155.0,0.0812]
[1724188263470,0.169034,59160.0,59156.0,0.169043]
[1724188263700,0.16903,59161.0,59156.0,0.169043]
[1724188264339,0.169033,59160.0,59156.0,0.169043]
[1724188265134,0.338058,59162.0,59157.0,0.507121]
[1724188265135,0.169028,59162.0,59157.0,0.507121]
[1724188265338,0.338042,59165.0,59157.0,0.169039]
[1724188265339,0.18440782,59161.0,59157.0,0.169039]
[1724188265619,0.01537782,59160.0,59157.0,0.169039]
[1724188265820,0.01537782,59160.0,59158.0,0.169037]
[1724188266023,0.169043,59157.0,59155.0,0.0812]
[1724188266276,0.169044,59156.0,59155.0,0.0812]
[1724188266453,0.5225097,59156.0,59155.0,0.0812]
[1724188267489,0.1844207,59156.0,59155.0,0.0812]
[1724188268646,0.169044,59156.0,59155.0,0.0812]
[1724188268852,0.02936006,59156.0,59155.0,0.0812]
[1724188269131,0.02936006,59156.0,59155.0,0.588341]
[1724188269324,0.02936006,59156.0,59155.0,0.926435]
[1724188269526,0.01536694,59156.0,59155.0,0.926435]
[1724188270713,0.01536694,59156.0,59151.0,0.0687042]
[1724188270714,1.751499,59152.0,59151.0,0.0011042]
[1724188270922,1.76686594,59152.0,59151.0,0.0011042]
[1724188271124,2.02028808,59152.0,59151.0,0.0011042]
[1724188272797,1.6202081,59152.0,59151.0,0.0011042]
[1724188273219,1.847917,59132.0,59131.0,0.0002]
[1724188273425,2.00608394,59132.0,59131.0,0.0002]
[1724188273628,2.11776435,59132.0,59131.0,0.0002]
[1724188275768,1.42043835,59132.0,59131.0,0.0002]
[1724188276334,1.40507141,59132.0,59131.0,0.0002]
[1724188276535,1.42042104,59132.0,59131.0,0.0002]
[1724188276755,1.42042111,59132.0,59131.0,0.0002]
[1724188276966,1.24082111,59132.0,59131.0,0.0002]
[1724188278032,0.90259511,59132.0,59131.0,0.0002]
[1724188278223,1.22547141,59132.0,59131.0,0.0002]
[1724188278427,1.2408196,59132.0,59131.0,0.0002]
[1724188280512,1.24081658,59132.0,59131.0,0.0002]
[1724188280722,0.56436458,59132.0,59131.0,0.0002]
[1724188280920,0.54901941,59132.0,59131.0,0.0002]
[1724188282353,0.18079341,59132.0,59131.0,0.0002]
[1724188282954,0.51901941,59132.0,59131.0,0.0002]
[1724188284558,0.01168041,59132.0,59131.0,0.0002]
[1724188284906,0.169109,59134.0,59131.0,0.0002]
[1724188285035,0.0113414,59132.0,59131.0,0.0002]
[1724188285217,0.169109,59134.0,59131.0,0.0002]
[1724188285418,0.0113414,59132.0,59131.0,0.0002]
[1724188285646,0.1691,59137.0,59132.0,0.169111]
[1724188285846,0.338153,59145.0,59134.0,0.338214]
[1724188285847,0.338152,59145.0,59134.0,0.338214]
[1724188286193,0.169081,59143.0,59139.0,0.16909]
[1724188286333,0.169076,59145.0,59141.0,0.0816]
[1724188286811,0.169076,59145.0,59141.0,0.250687]
[1724188286976,0.169065,59149.0,59141.0,0.0816]
[1724188287183,0.338108,59153.0,59142.0,0.00311366]
[1724188287184,0.169071,59147.0,59142.0,0.00311366]
[1724188287379,0.169073,59146.0,59141.0,0.0816]
[1724188287580,0.16989,59148.0,59144.0,0.169078]
[1724188287783,0.000822,59148.0,59144.0,0.169077]
[1724188288046,0.16989,59148.0,59144.0,0.169077]
[1724188288249,0.000822,59148.0,59147.0,0.16907]
[1724188288472,0.000822,59148.0,59147.0,0.22947]
[1724188288617,0.000822,59148.0,59147.0,0.98455]
[1724188288822,0.000822,59148.0,59147.0,1.00755]
[1724188289450,0.000822,59148.0,59147.0,0.66941]
[1724188292022,0.000822,59148.0,59147.0,0.67041]
[1724188292223,0.000822,59148.0,59147.0,1.01055]
[1724188292641,0.000822,59148.0,59147.0,1.38454]
[1724188295615,0.000822,59166.0,59165.0,0.845092]
[1724188295811,0.000822,59166.0,59165.0,0.608855]
[1724188295991,0.01064115,59166.0,59165.0,0.0788]
[1724188296140,0.01064115,59166.0,59161.0,0.0604]
[1724188296141,0.01064115,59166.0,59164.0,0.16902]
[1724188296342,0.000822,59166.0,59164.0,0.169019]
[1724188296545,0.000822,59166.0,59165.0,0.169018]
[1724188297412,0.000822,59166.0,59165.0,0.845092]
[1724188297619,0.000822,59166.0,59165.0,0.6544089]
[1724188297826,0.000822,59166.0,59165.0,0.868092]
[1724188298036,0.000822,59166.0,59165.0,1.688366]
[1724188298241,0.000822,59166.0,59165.0,1.722216]
[1724188298663,0.000822,59166.0,59165.0,2.018916]
[1724188298879,0.000822,59166.0,59165.0,2.020916]
[1724188299129,0.000822,59166.0,59165.0,2.18489478]
[1724188300107,0.005,59178.0,59165.0,2.18489478]
[1724188300108,0.005,59178.0,59177.0,1.321672]
[1724188300345,0.005,59178.0,59177.0,2.02061]
[1724188300600,0.005,59178.0,59177.0,2.09471]
[1724188300840,0.005,59178.0,59177.0,2.25868878]
[1724188301565,0.005,59178.0,59177.0,0.648153]
[1724188302142,0.005,59178.0,59177.0,0.986122]
[1724188302862,0.005,59178.0,59177.0,1.009122]
[1724188303102,0.005,59178.0,59177.0,1.348091]
[1724188303333,0.005,59178.0,59177.0,1.352091]
[1724188303567,0.005,59178.0,59177.0,1.51606978]
[1724188303791,0.005,59178.0,59177.0,1.54991978]
[1724188305815,0.005,59178.0,59177.0,1.88788878]
[1724188308014,0.005,59178.0,59172.0,0.338993]
[1724188308244,0.005,59178.0,59173.0,0.337991]
[1724188308493,0.005,59178.0,59175.0,0.168988]
[1724188308742,0.005,59178.0,59177.0,0.168984]
[1724188308993,0.005,59178.0,59177.0,0.506953]
[1724188310845,0.005,59178.0,59177.0,0.529953]
[1724188311533,0.005,59178.0,59177.0,0.867922]
[1724188311745,0.005,59178.0,59177.0,0.9885123]
[1724188312571,0.005,59178.0,59177.0,1.3264813]
[1724188312775,0.005822,59178.0,59177.0,1.4711813]
[1724188313138,0.005822,59178.0,59177.0,1.4731813]
[1724188313377,0.005822,59178.0,59177.0,1.5070313]
[1724188313597,0.005822,59178.0,59177.0,1.8450003]
[1724188313788,0.005822,59178.0,59177.0,1.8111503]
[1724188313926,0.005822,59178.0,59177.0,1.8450003]
[1724188314317,0.005822,59178.0,59177.0,1.5070313]
[1724188314722,0.005822,59178.0,59177.0,1.386441]
[1724188318402,0.005822,59178.0,59177.0,1.384441]
[1724188318985,0.005822,59178.0,59177.0,1.046472]
[1724188319383,0.005822,59178.0,59177.0,1.043472]
[1724188319786,0.005822,59178.0,59177.0,1.381441]
[1724188319995,0.005822,59178.0,59177.0,1.382441]
[1724188320400,0.005822,59178.0,59177.0,1.046472]
[1724188320698,0.005822,59178.0,59177.0,1.681141]
[1724188320893,0.005822,59178.0,59177.0,1.84511978]
[1724188321302,0.005822,59178.0,59177.0,1.84711978]
[1724188322056,0.005822,59178.0,59177.0,1.683141]
[1724188324054,0.005822,59178.0,59177.0,0.540803]
[1724188324491,0.16899,59175.0,59165.0,0.2967]
[1724188324731,0.0806,59174.0,59169.0,0.338014]
[1724188324925,0.01535678,59173.0,59172.0,0.168997]
[1724188325124,0.01535678,59173.0,59171.0,0.169001]
[1724188325329,0.01535684,59172.0,59171.0,0.169001]
[1724188326490,0.01535684,59172.0,59171.0,0.507004]
[1724188326692,0.0806,59174.0,59173.0,0.506986]
[1724188326892,0.005822,59178.0,59177.0,0.168984]
[1724188327095,0.02118019,59178.0,59177.0,0.168984]
[1724188327301,0.02118019,59178.0,59175.0,0.168987]
[1724188327505,0.169013,59167.0,59165.0,0.03385]
[1724188327680,0.33136608,59167.0,59162.0,1.414426]
[1724188327885,0.33136608,59167.0,59163.0,0.646124]
[1724188328153,0.33136608,59167.0,59163.0,0.4771]
[1724188328586,0.16235308,59167.0,59164.0,0.169021]
[1724188328755,0.16235294,59167.0,59164.0,0.169021]
[1724188328923,0.09835294,59167.0,59164.0,0.169021]
[1724188329123,0.09835293,59167.0,59164.0,0.169021]
[1724188329336,0.60539193,59167.0,59163.0,0.4771]
[1724188330285,0.60539193,59167.0,59159.0,0.169035]
[1724188330625,0.60539193,59167.0,59160.0,0.169032]
[1724188331247,1.28144393,59167.0,59152.0,0.4771]
[1724188331503,1.34504393,59167.0,59152.0,0.4771]
[1724188331619,1.34504393,59167.0,59152.0,0.815211]
[1724188332044,1.34504393,59167.0,59153.0,0.169051]
[1724188332249,1.34504393,59167.0,59152.0,0.815211]
[1724188332466,1.34504393,59167.0,59155.0,0.169046]
[1724188332678,1.34504393,59167.0,59156.0,0.169044]
[1724188333033,1.34504393,59167.0,59154.0,0.169049]
[1724188333808,1.34504393,59167.0,59152.0,1.153322]
[1724188334241,1.34504393,59167.0,59156.0,0.169043]
[1724188334442,1.34504393,59167.0,59155.0,0.169045]
[1724188334645,1.34504393,59167.0,59156.0,0.169042]
[1724188334845,1.00701793,59167.0,59155.0,0.338094]
[1724188335055,1.00701793,59167.0,59157.0,0.16904]
[1724188341036,0.991665,59167.0,59157.0,0.16904]
[1724188341439,1.00701565,59167.0,59157.0,0.16904]
[1724188341634,1.00701579,59167.0,59157.0,0.16904]
[1724188341815,1.00701577,59167.0,59157.0,0.16904]
[1724188342639,1.00701577,59167.0,59156.0,0.169044]
[1724188342792,1.00701577,59167.0,59157.0,0.169041]
[1724188344935,0.01535077,59167.0,59162.0,0.2967]
[1724188345142,0.169002,59171.0,59164.0,0.0796]
[1724188345352,0.169002,59171.0,59166.0,0.1699192]
[1724188345962,0.169002,59171.0,59166.0,0.0009042]
[1724188346141,0.169002,59171.0,59166.0,0.1699192]
[1724188346346,0.169004,59170.0,59166.0,0.1699192]
[1724188346583,0.169003,59171.0,59166.0,0.1699192]
[1724188347400,0.337987,59174.0,59166.0,0.08780382]
[1724188347600,0.168993,59174.0,59168.0,0.338019]
[1724188347882,0.168993,59174.0,59170.0,0.169003]
[1724188348496,0.168996,59173.0,59170.0,0.169003]
[1724188349344,0.337976,59176.0,59171.0,0.169001]
[1724188349769,0.000822,59172.0,59170.0,0.169004]
[1724188349970,0.000822,59172.0,59171.0,0.169001]
[1724188350380,0.079222,59172.0,59166.0,0.0009042]
[1724188350581,0.248222,59172.0,59168.0,0.16901]
[1724188350785,0.248222,59172.0,59169.0,0.169007]
[1724188351790,0.079222,59172.0,59169.0,0.169007]
[1724188351986,0.248221,59172.0,59169.0,0.169007]
[1724188352831,0.000822,59172.0,59169.0,0.08459672]
[1724188353036,0.000822,59172.0,59171.0,0.921907]
[1724188353239,0.000822,59172.0,59171.0,0.845007]
[1724188353460,0.000822,59172.0,59171.0,0.530004]
[1724188354002,0.000822,59172.0,59171.0,0.868007]
[1724188354853,0.000822,59172.0,59166.0,0.2986042]
[1724188354854,0.169013,59167.0,59166.0,0.0009042]
[1724188355081,0.87732292,59167.0,59166.0,0.0009042]
[1724188355286,1.29164892,59167.0,59166.0,0.0009042]
[1724188356971,1.27474762,59167.0,59166.0,0.0009042]
[1724188359987,1.47474762,59167.0,59166.0,0.0009042]
[1724188361765,1.47474484,59167.0,59166.0,0.0009042]
[1724188362170,0.93671884,59167.0,59166.0,0.0009042]
[1724188362804,0.01535384,59167.0,59166.0,0.0009042]
[1724188363209,0.169009,59169.0,59166.0,0.0009042]
[1724188363424,0.18436888,59168.0,59166.0,0.0009042]
[1724188363645,0.169007,59169.0,59166.0,0.0009042]
[1724188363887,0.01535777,59168.0,59166.0,0.0009042]
[1724188364081,0.169007,59169.0,59166.0,0.0009042]
[1724188364282,0.01535778,59168.0,59166.0,0.0009042]
[1724188364560,0.16901,59168.0,59166.0,0.0009042]
[1724188364964,0.414123,59172.0,59166.0,0.1699182]
[1724188365159,0.01535789,59171.0,59166.0,0.1699182]
[1724188365374,0.18436189,59170.0,59166.0,0.1699182]
[1724188365575,0.414123,59172.0,59166.0,0.42353192]
[1724188365576,0.01535789,59169.0,59166.0,0.42353192]
[1724188365780,0.000822,59172.0,59171.0,0.169001]
[1724188366183,0.01618055,59172.0,59171.0,0.169001]
[1724188366622,0.01618055,59172.0,59171.0,0.530004]
[1724188367232,0.000822,59172.0,59171.0,0.530004]
[1724188367678,0.000822,59172.0,59171.0,0.868007]
[1724188367879,0.000822,59172.0,59171.0,0.9606766]
[1724188368963,0.000822,59172.0,59171.0,0.868007]
[1724188369975,0.000822,59172.0,59171.0,1.27251]
[1724188370606,0.078422,59172.0,59171.0,0.530004]
[1724188370820,0.078422,59172.0,59166.0,0.0009042]
[1724188370821,0.000822,59172.0,59167.0,0.338022]
[1724188371022,0.000822,59172.0,59170.0,0.169003]
[1724188371175,0.000822,59172.0,59168.0,0.36102]
[1724188371378,0.000822,59172.0,59170.0,0.169004]
[1724188371584,0.000822,59172.0,59171.0,0.169001]
[1724188373561,0.000822,59172.0,59171.0,0.507004]
[1724188376244,0.146722,59172.0,59169.0,0.0009031]
[1724188376451,0.169004,59170.0,59169.0,0.0009031]
[1724188376652,0.52659943,59170.0,59169.0,0.0009031]
[1724188377463,0.52237335,59170.0,59169.0,0.0009031]
[1724188377670,0.86038235,59170.0,59169.0,0.0009031]
[1724188378086,0.90986319,59170.0,59169.0,0.0009031]
[1724188379754,0.90998551,59170.0,59169.0,0.0009031]
[1724188381138,0.23396336,59170.0,59169.0,0.0009031]
[1724188381320,0.0153562,59170.0,59169.0,1.1839521]
[1724188381572,0.000822,59172.0,59171.0,0.507004]
[1724188381804,0.000822,59172.0,59171.0,1.20601]
[1724188382230,0.000822,59172.0,59171.0,1.28871]
[1724188382638,0.000822,59172.0,59171.0,0.169001]
[1724188383989,0.000822,59172.0,59169.0,0.3389131]
[1724188383990,0.081022,59172.0,59169.0,0.0009031]
[1724188384207,0.169004,59170.0,59169.0,0.0009031]
[1724188384622,0.18436117,59170.0,59169.0,0.0009031]
[1724188385090,0.86307517,59170.0,59169.0,0.0009031]
[1724188385294,1.53731559,59170.0,59169.0,0.0009031]
[1724188385543,1.43810927,59170.0,59169.0,0.0009031]
[1724188386154,1.49619143,59170.0,59169.0,0.0009031]
[1724188386360,1.49196616,59170.0,59169.0,0.0009031]
[1724188386569,1.433884,59170.0,59169.0,0.0009031]
[1724188386976,1.53307939,59170.0,59169.0,0.0009031]
[1724188387402,1.44448724,59170.0,59169.0,0.0009031]
[1724188387652,0.96567917,59170.0,59169.0,0.0009031]
[1724188387875,1.04007824,59170.0,59169.0,0.0009031]
[1724188388136,1.01528113,59170.0,59169.0,0.0009031]
[1724188388389,0.64727213,59170.0,59169.0,0.0009031]
[1724188388599,0.63191496,59170.0,59169.0,0.0009031]
[1724188388804,0.64726957,59170.0,59169.0,0.0009031]
[1724188389640,0.59766761,59170.0,59169.0,0.0009031]
[1724188390047,0.64726957,59170.0,59169.0,0.0009031]
[1724188390265,0.98528668,59170.0,59169.0,0.0009031]
[1724188390475,1.01007568,59170.0,59169.0,0.0009031]
[1724188390671,1.34808468,59170.0,59169.0,0.0009031]
[1724188390884,1.32329735,59170.0,59169.0,0.0009031]
[1724188391518,0.93567661,59170.0,59169.0,0.0009031]
[1724188392222,0.98528783,59170.0,59169.0,0.0009031]
[1724188393052,0.98528714,59170.0,59169.0,0.0009031]
[1724188393815,0.93567661,59170.0,59169.0,0.0009031]
[1724188394066,0.96993497,59170.0,59169.0,0.0009031]
[1724188394266,0.98529034,59170.0,59169.0,0.0009031]
[1724188396445,0.9852897,59170.0,59169.0,0.0009031]
[1724188397248,0.98528661,59170.0,59169.0,0.0009031]
[1724188399212,1.27368573,59170.0,59169.0,0.0009031]
[1724188399977,1.32330503,59170.0,59169.0,0.0009031]
[1724188400396,1.32330579,59170.0,59169.0,0.0009031]
[1724188400602,1.27368649,59170.0,59169.0,0.0009031]
[1724188400803,1.258331,59170.0,59169.0,0.0009031]
[1724188401066,1.27368649,59170.0,59169.0,0.0009031]
[1724188403517,1.34812429,59170.0,59169.0,0.0009031]
[1724188406311,1.33694741,59170.0,59169.0,0.0009031]
[1724188406557,0.92363841,59170.0,59169.0,0.0009031]
[1724188406760,0.86037749,59170.0,59169.0,0.0009031]
[1724188406962,0.90828978,59170.0,59169.0,0.0009031]
[1724188407179,0.92364964,59170.0,59169.0,0.0009031]
[1724188407842,0.92364964,59170.0,59169.0,0.8670241]
[1724188407843,0.01535986,59170.0,59169.0,0.8670241]
[1724188408056,0.01535986,59170.0,59169.0,1.32320093]
[1724188408264,0.000822,59172.0,59171.0,0.850007]
[1724188408470,0.000822,59172.0,59171.0,1.017107]
[1724188408825,0.000822,59172.0,59171.0,1.35511]
[1724188409025,0.000822,59172.0,59171.0,1.51908878]
[1724188409233,0.000822,59172.0,59171.0,1.85709178]
[1724188409410,0.000822,59178.0,59177.0,1.187891]
[1724188409610,0.000822,59178.0,59177.0,1.651091]
[1724188409819,0.000822,59178.0,59177.0,1.81506978]
[1724188411024,0.000822,59182.0,59181.0,0.849865]
[1724188411243,0.000822,59182.0,59181.0,1.354811]
[1724188411633,0.000822,59182.0,59181.0,1.388661]
[1724188413375,0.000822,59182.0,59181.0,1.726607]
[1724188413582,0.000822,59182.0,59181.0,1.89058578]
[1724188414557,0.168916,59201.0,59197.0,0.168927]
[1724188414774,0.168916,59201.0,59198.0,0.023]
[1724188414978,0.168913,59202.0,59198.0,0.191924]
[1724188415157,0.0787,59205.0,59192.0,0.413677]
[1724188415158,0.1087,59205.0,59192.0,0.413677]
[1724188415374,0.168928,59197.0,59193.0,0.191937]
[1724188415910,0.168923,59199.0,59193.0,0.023]
[1724188416096,0.168916,59201.0,59194.0,0.337866]
[1724188416325,0.00822,59208.0,59197.0,0.0758]
[1724188416538,0.35317435,59207.0,59198.0,0.023]
[1724188416703,0.168908,59204.0,59200.0,0.168918]
[1724188416906,0.168908,59204.0,59201.0,0.023]
[1724188417387,0.337801,59207.0,59201.0,0.023]
[1724188417388,0.16891,59203.0,59201.0,0.023]
[1724188417597,0.16891,59203.0,59199.0,0.191921]
[1724188417815,0.337808,59206.0,59200.0,0.168917]
[1724188418030,0.168908,59204.0,59201.0,0.023]
[1724188418232,0.168907,59205.0,59202.0,0.168913]
[1724188418435,0.506702,59207.0,59203.0,0.023]
[1724188418617,0.168905,59205.0,59203.0,0.023]
[1724188418824,0.168905,59205.0,59202.0,0.023]
[1724188419471,0.168905,59205.0,59201.0,0.191914]
[1724188420068,0.0751,59203.0,59184.0,0.337927]
[1724188420329,0.168942,59192.0,59187.0,0.168954]
[1724188420541,0.0751,59203.0,59187.0,0.168954]
[1724188420542,0.337836,59201.0,59189.0,0.168949]
[1724188420751,0.168938,59193.0,59189.0,0.168949]
[1724188421195,0.168936,59194.0,59189.0,0.168949]
[1724188421407,0.168936,59194.0,59190.0,0.168947]
[1724188421849,0.168936,59194.0,59191.0,0.023]
[1724188422498,0.168941,59192.0,59191.0,0.023]
[1724188422705,0.168941,59192.0,59189.0,0.023]
[1724188422952,0.168938,59194.0,59189.0,0.191949]
[1724188423804,0.168938,59194.0,59190.0,0.168946]
[1724188423980,0.168938,59194.0,59191.0,0.023]
[1724188424709,0.168938,59194.0,59191.0,0.191944]
[1724188424917,0.168931,59196.0,59191.0,0.191944]
[1724188425124,0.168934,59195.0,59191.0,0.191944]
[1724188425344,0.168905,59205.0,59201.0,0.168915]
[1724188425562,0.0769,59206.0,59202.0,0.023]
[1724188425563,0.168908,59204.0,59202.0,0.023]
[1724188425978,0.168908,59204.0,59200.0,0.168916]
[1724188426181,0.168908,59204.0,59201.0,0.023]
[1724188426383,0.168906,59205.0,59201.0,0.023]
[1724188426500,0.168906,59205.0,59201.0,0.191915]
[1724188427770,0.168904,59205.0,59201.0,0.191915]
[1724188429738,0.168907,59204.0,59201.0,0.191915]
[1724188432205,0.000821,59205.0,59201.0,0.191915]
[1724188432342,0.169726,59205.0,59201.0,0.191915]
[1724188433633,0.169726,59205.0,59202.0,0.168912]
[1724188433771,0.169726,59205.0,59203.0,0.023]
[1724188436301,0.000821,59205.0,59203.0,0.023]
[1724188436528,0.169726,59205.0,59203.0,0.023]
[1724188437292,0.02280981,59204.0,59203.0,0.023]
[1724188437942,0.02280981,59204.0,59201.0,0.168915]
[1724188437943,0.02280981,59204.0,59202.0,0.023]
[1724188438093,0.0074345,59204.0,59202.0,0.023]
[1724188438330,0.01537528,59203.0,59202.0,0.023]
[1724188438712,0.02280978,59203.0,59202.0,0.023]
[1724188440249,0.19171978,59203.0,59202.0,0.023]
[1724188440584,0.0074345,59203.0,59201.0,0.168914]
[1724188440785,0.01537517,59203.0,59202.0,0.023]
[1724188440986,0.01537499,59203.0,59202.0,0.023]
[1724188441189,0.168925,59198.0,59192.0,0.403579]
[1724188441389,0.000821,59205.0,59194.0,0.36087]
[1724188441674,0.168918,59201.0,59197.0,0.168925]
[1724188441888,0.01537444,59200.0,59198.0,0.023]
[1724188442087,0.01537444,59200.0,59198.0,0.191923]
[1724188442904,0.01486196,59200.0,59198.0,0.023]
[1724188443070,0.168918,59201.0,59198.0,0.023]
[1724188444265,0.168918,59201.0,59198.0,0.1097657]
[1724188444716,0.168918,59201.0,59198.0,0.191924]
[1724188445131,0.337815,59204.0,59199.0,0.168921]
[1724188445336,0.337815,59204.0,59200.0,0.023]
[1724188445748,0.000821,59205.0,59200.0,0.360834]
[1724188445966,0.000821,59205.0,59203.0,0.168907]
[1724188446169,0.000821,59205.0,59204.0,0.023]
[1724188448629,0.000821,59205.0,59204.0,0.191907]
[1724188448829,0.0083565,59205.0,59204.0,0.191907]
[1724188449519,0.0083565,59205.0,59204.0,0.529722]
[1724188449717,0.000821,59205.0,59204.0,0.191907]
[1724188449923,0.0083565,59205.0,59204.0,1.0983935]
[1724188450139,0.000821,59205.0,59204.0,1.4362085]
[1724188450590,0.000821,59205.0,59204.0,1.4392085]
[1724188450820,0.000821,59205.0,59204.0,1.4412085]
[1724188451255,0.000821,59205.0,59204.0,1.7790235]
[1724188451467,0.00821,59226.0,59204.0,1.7790235]
[1724188451468,0.00821,59226.0,59215.0,0.3767]
[1724188451641,0.00821,59226.0,59219.0,0.168864]
[1724188451642,0.49229154,59220.0,59219.0,0.168864]
[1724188451861,0.0075355,59225.0,59219.0,0.360729]
[1724188452060,0.00821,59226.0,59216.0,0.439715]
[1724188452061,0.00821,59226.0,59218.0,0.001]
[1724188452260,0.0075355,59224.0,59223.0,0.168853]
[1724188452464,0.00821,59226.0,59224.0,0.16885]
[1724188452718,0.00821,59226.0,59225.0,0.023]
[1724188453054,0.00821,59226.0,59224.0,0.023]
[1724188454877,0.01537509,59225.0,59224.0,0.19185]
[1724188455085,0.00821,59226.0,59224.0,0.19185]
[1724188455921,0.00821,59226.0,59225.0,0.506542]
[1724188456130,0.00821,59226.0,59225.0,0.191847]
[1724188456331,0.00821,59226.0,59225.0,0.947637]
[1724188456531,0.00821,59226.0,59225.0,1.0721707]
[1724188457757,0.00921,59226.0,59225.0,1.0811707]
[1724188458160,0.00821,59226.0,59225.0,1.0731707]
[1724188458367,0.00821,59226.0,59225.0,1.0831707]
[1724188458368,0.00921,59226.0,59225.0,1.0831707]
[1724188458783,0.00921,59226.0,59225.0,1.4208657]
[1724188458959,0.00921,59226.0,59225.0,1.4830657]
[1724188459314,0.00921,59226.0,59225.0,1.4840657]
[1724188459520,0.00921,59226.0,59225.0,1.4860657]
[1724188459966,0.00921,59226.0,59225.0,1.4880657]
[1724188461577,0.00921,59226.0,59225.0,1.49797889]
[1724188461977,0.00921,59226.0,59225.0,1.83567389]